Cogmind - Beta 11 X8 @@@ ROGUE MODE // 2021.10.23 @ 12:32:38 Player: Plexion Result: Destroyed by 8R-AWN with 8R-AWN's Boregun Performance ------------- Evolutions (0) 0 Regions Visited (3) 600 Robots Destroyed (24) 120 Value Destroyed (555) 555 Prototype IDs (23) 460 Alien Tech Used (0) 0 Bonus (300) 300 TOTAL SCORE: 2035 Bonus ------- Aligned with FarCom 300 Cogmind --------- Core Integrity 0/250 Matter 73/300 Energy 250/250 System Corruption 0% Temperature Cool (12) Movement Treading (160) Location -10/Exiles Parts ------- > --- POWER (1) -------- Ion Engine > --- PROPULSION (2) --- Light Treads Light Treads > --- UTILITY (2) ------ (None) > --- WEAPON (2) ------- Autogun Autogun > --- INVENTORY (5) ---- Light Ion Engine EM Pulse Gun Peak State ------------ > --- POWER ------------ Light Ion Engine > --- PROPULSION ------- Light Treads Light Treads > --- UTILITY ---------- Improved Heat Sink High-capacity Storage Unit > --- WEAPON ----------- Light Cannon Mini Grenade Launcher > --- INVENTORY -------- Ion Engine Nuclear Core Reinforced Deuterium Engine Light Treads Light Treads Light Treads Medium Armor Plating Medium Armor Plating Medium Armor Plating Medium Armor Plating EM Pulse Gun Autogun Autogun Autogun Autogun Light Cannon Mini Grenade Launcher [Rating: 13] Favorites ----------- Power Light Ion Engine Engine Light Ion Engine Propulsion Light Treads Treads Light Treads Utility Improved Heat Sink Device Improved Heat Sink Storage High-capacity Storage Unit Protection Medium Armor Plating Weapon Light Cannon Energy Gun Medium Laser Ballistic Gun Light Assault Rifle Ballistic Cannon Light Cannon Launcher Mini Grenade Launcher Build | -11 -10 -10 -10 ------- Run | Scr Mat Min Exi Slots Evolved . | . . . . Power . | . . . . Propulsion . | . . . . Utility . | . . . . Weapon . | . . . . Parts Attached 32 | 6 10 1 15 Power 3 | 1 1 . 1 Engine 3 | 1 1 . 1 Core . | . . . . Reactor . | . . . . Propulsion 9 | 2 2 . 5 Treads 9 | 2 2 . 5 Leg . | . . . . Wheel . | . . . . Hover . | . . . . Flight . | . . . . Utility 9 | 1 3 . 5 Device 1 | . 1 . . Storage 3 | 1 2 . . Processor . | . . . . Hackware . | . . . . Protection 5 | . . . 5 Artifact . | . . . . Weapon 11 | 2 4 1 4 Energy Gun 2 | 1 . . 1 Energy Cannon . | . . . . Ballistic Gun 4 | 1 . . 3 Ballistic Cannon 3 | . 3 . . Launcher 2 | . 1 1 . Special Weapon . | . . . . Impact Weapon . | . . . . Slashing Weapon . | . . . . Piercing Weapon . | . . . . Special Melee Weapon . | . . . . Unidentified Prototypes . | . . . . Parts Lost 8 | . 1 . 7 Power 1 | . 1 . . Propulsion 3 | . . . 3 Utility 4 | . . . 4 Weapon . | . . . . Highest Loss Streak 7 | . 1 . 7 Average Slot Usage (%) 98 | . 98 100 97 Engine 13 | . 13 14 14 Treads 27 | . 28 28 27 Device 11 | . 12 14 10 Storage 13 | . 14 14 12 Protection 1 | . . . 3 Energy Gun 1 | . 3 . . Ballistic Gun 4 | . 5 . 3 Ballistic Cannon 15 | . 19 22 9 Launcher 6 | . . 5 12 Naked Turns . | . . . . Heaviest Build 56 | 11 50 50 56 Greatest Support 40 | 40 40 40 40 Greatest Overweight (x) 1 | . 1 1 1 Average Overweight (x) . | . . 1 . Largest Inventory Capacity 20 | 8 20 20 20 Average Capacity 17 | 6 17 20 18 Most Carried 20 | 2 17 15 20 Average Carried 13 | . 11 15 14 Final Capacity 20 | 8 20 20 5 Final Carried 15 | 2 15 15 2 Class Distribution -------------------- 100% | Mutant Dominant Class ---------------- Mutant | -10/Materials Mutant | -10/Mines Mutant | -10/Exiles Resources | -11 -10 -10 -10 ----------- Run | Scr Mat Min Exi Matter Collected 850 | 228 328 . 294 Remotely . | . . . . Salvage Created 615 | . 588 27 . Parts 41 | . 39 2 . Haulers Intercepted 2 | . 2 . . Recyclers Shooed 1 | . 1 . . Parts Field Recycled . | . . . . Retrieved Matter . | . . . . Parts Self-Destructed . | . . . . Prevented . | . . . . Kills | -11 -10 -10 -10 ------- Run | Scr Mat Min Exi Combat Hostiles Destroyed 21 | . 16 3 2 Guns 6 | . 6 . . Cannons 7 | . 7 . . AOE 8 | . 3 3 2 Classes Destroyed 5 | . 4 . 1 Worker 3 | . 2 1 . Hauler 2 | . 2 . . Swarmer 6 | . 3 3 . Grunt 13 | . 13 . . Assembled 2 | . . . 2 Best Kill Streak 5 | . 5 4 2 Combat Bots Only 3 | . 3 3 2 Max Kills in Single Turn 3 | . 3 2 1 Gunslinging . | . . . . Exploded 2 | . 2 1 1 Melee . | . . . . Uniques/NPCs Destroyed . | . . . . Combat | -11 -10 -10 -10 -------- Run | Scr Mat Min Exi Damage Taken 1952 | . 614 134 1204 Core 260 | . 90 24 146 Absorbed by Shields . | . . . . Core Remaining (%) 100 | 100 . . . Volleys Fired 97 | . 53 4 40 Largest 2 | . 2 1 2 Hottest 70 | . 70 30 63 Shots Fired 177 | . 104 4 69 Gun 110 | . 51 . 59 Cannon 51 | . 51 . . Launcher 16 | . 2 4 10 Special . | . . . . Kinetic 131 | . 77 . 54 Thermal 25 | . 25 . . Explosive 16 | . 2 4 10 Electromagnetic 5 | . . . 5 Robot Hit Streak 13 | . 8 1 13 Robot Miss Streak 5 | . 5 . 2 Penetration Max . | . . . . Secondary Targets 2 | . 2 . . Max Gunslinging Chain 1 | . 1 . . Shots Hit Robots 110 | . 57 1 52 Core Hits 47 | . 28 4 15 Critical Kills . | . . . . Critical Parts Destroyed . | . . . . Critical Strikes 2 | . 2 . . Blast 2 | . 2 . . Melee Attacks . | . . . . Impact . | . . . . Slashing . | . . . . Piercing . | . . . . Sneak Attacks . | . . . . Combat Hostiles . | . . . . Follow-up Attacks . | . . . . Damage Inflicted 2299 | . 1104 234 961 Guns 1000 | . 278 . 722 Cannons 554 | . 554 . . Explosions 739 | . 267 234 238 Melee . | . . . . Ramming 6 | . 5 . 1 Kinetic 1374 | . 655 . 719 Thermal 177 | . 177 . . Explosive 739 | . 267 234 238 Electromagnetic 3 | . . . 3 Impact . | . . . . Slashing . | . . . . Piercing . | . . . . Highest Corruption . | . . . . Average Corruption . | . . . . Corruption Purged . | . . . . Overload Shots . | . . . . Overflow Damage 12 | . 12 . . Projectiles 12 | . 12 . . Explosions . | . . . . Melee . | . . . . Knockbacks 7 | . 7 . . Impact . | . . . . Kinetic 5 | . 5 . . Secondary 2 | . 2 . . Self-Inflicted Damage 95 | . 41 7 47 Shots 3 | . 1 1 1 Rammed 2 | . 1 . 1 Targets Rammed 2 | . 1 . 1 Kicked . | . . . . Crushed . | . . . . Highest Temperature 184 | . 184 . 114 Average Temperature 47 | . 54 . 39 Received Heat Transfer 309 | . 309 . . Siege Activations . | . . . . Robots Corrupted . | . . . . Combat Hostiles . | . . . . Parts Fried . | . . . . Impact Corruptions . | . . . . Robots Melted . | . . . . Combat Hostiles . | . . . . Parts Melted 1 | . 1 . . Heat Transferred 518 | . 518 . . Parts Sabotaged . | . . . . Parts Stolen . | . . . . Parts Stripped . | . . . . Power Chain Reactions . | . . . . Missiles Intercepted . | . . . . Alert | -11 -10 -10 -10 ------- Run | Scr Mat Min Exi Peak Influence 167 | . 167 116 . Initial 41 | . . 41 . Average 58 | . 58 69 . Maximum Alert Level . | . . . . Low Security (%) 100 | 100 100 100 . Level 1 . | . . . . Level 2 . | . . . . Level 3 . | . . . . Level 4 . | . . . . Level 5 . | . . . . High Security . | . . . . Max Security . | . . . . Squads Dispatched 3 | . 3 . . Investigation 1 | . 1 . . Extermination . | . . . . Reinforcement 2 | . 2 . . Assault . | . . . . Garrison . | . . . . Intercept . | . . . . Construction Impeded . | . . . . Haulers Reinforced . | . . . . Active Scanning Responses . | . . . . Cargo Convoy Interrupts . | . . . . Stealth | -11 -10 -10 -10 --------- Run | Scr Mat Min Exi Distress Signals 1 | . 1 . . Communications Jammed . | . . . . Distress Signals . | . . . . Times Spotted 42 | . 31 3 8 Peak Tracking Total 10 | . 5 3 10 Tactical Retreats 1 | . . . 1 Traps | -11 -10 -10 -10 ------- Run | Scr Mat Min Exi Traps Triggered 1 | . 1 . . Indirectly . | . . . . Trap Hack Attempts . | . . . . Triggered . | . . . . Disarmed . | . . . . Reprogrammed . | . . . . Reused . | . . . . Traps Extracted . | . . . . Installed . | . . . . Triggered . | . . . . Exploded 3 | . . . 3 Machines | -11 -10 -10 -10 ---------- Run | Scr Mat Min Exi Machines Disabled 6 | . 2 . 4 Max in Single Turn 1 | . 1 . 1 Machines Sabotaged . | . . . . Garrisons Compromised . | . . . . Overloaded Fab Kills . | . . . . Hacking | -11 -10 -10 -10 --------- Run | Scr Mat Min Exi Machines Accessed 5 | . 3 . 2 Terminals 3 | . 3 . . Fabricators . | . . . . Repair Stations . | . . . . Recycling Units . | . . . . Scanalyzers . | . . . . Garrison Access . | . . . . Total Hacks 7 | . 5 . 2 Successful 5 | . 3 . 2 Failed 2 | . 2 . . Catastrophic . | . . . . Database Lockouts . | . . . . Manual 6 | . 5 . 1 Terminals 5 | . 5 . . Fabricators . | . . . . Repair Stations . | . . . . Recycling Units . | . . . . Scanalyzers . | . . . . Garrison Access . | . . . . Terminal Hacks 3 | . 1 . 2 Record 1 | . . . 1 Branch Access Points 1 | . 1 . . EX-Prototype ID Bank 1 | . . . 1 Fabricator Hacks . | . . . . Repair Station Hacks . | . . . . Recycling Unit Hacks . | . . . . Scanalyzer . | . . . . Garrison Access Hacks . | . . . . Unauthorized Hacks 2 | . 2 . . Terminals 2 | . 2 . . Assimilate 1 | . 1 . . Disrupt 1 | . 1 . . Fabricators . | . . . . Repair Stations . | . . . . Recycling Units . | . . . . Scanalyzers . | . . . . Garrison Access . | . . . . Data Cores Recovered . | . . . . Used . | . . . . Hacking Detections 1 | . 1 . . Full Trace Events . | . . . . Feedback Events . | . . . . Feedback Blocked . | . . . . Robot Schematics Acquired . | . . . . Robots Built . | . . . . Authchips . | . . . . Time . | . . . . Total Robot Build Rating . | . . . . Part Schematics Acquired . | . . . . Parts Built . | . . . . Authchips . | . . . . Time . | . . . . Total Part Build Rating . | . . . . Parts Repaired . | . . . . Time . | . . . . Parts Recycled . | . . . . Recycled Matter . | . . . . Retrieved Matter . | . . . . Retrieved Components . | . . . . Parts Scanalyzed . | . . . . Part Schematics Acquired . | . . . . Parts Damaged . | . . . . Bothacking | -11 -10 -10 -10 ------------ Run | Scr Mat Min Exi Used RIF Installer . | . . . . Robots Hacked . | . . . . Non-combat . | . . . . Combat . | . . . . Robot Hacks Applied . | . . . . Relay Couplers Released . | . . . . Robots Rewired . | . . . . Allies Hacked . | . . . . Hacks Repelled . | . . . . Allies | -11 -10 -10 -10 -------- Run | Scr Mat Min Exi Total Allies 1 | . 1 . . Largest Group 1 | . 1 . . Highest-Rated Group 10 | . 10 . . Highest-Rated Ally 10 | . 10 . . Total Orders . | . . . . Ally Attacks . | . . . . Total Damage . | . . . . Kills . | . . . . Allies Corrupted . | . . . . Allies Melted . | . . . . Intel | -11 -10 -10 -10 ------- Run | Scr Mat Min Exi Robot Analysis Total . | . . . . Derelict Logs Recovered . | . . . . Drone Launches . | . . . . Drone Recoveries . | . . . . Exploration | -11 -10 -10 -10 ------------- Run | Scr Mat Min Exi Turns Passed 3312 | 71 1426 353 1462 Spaces Moved 1336 | 41 595 144 556 Core 4 | 4 . . . Treads 1332 | 37 595 144 556 Legs . | . . . . Wheels . | . . . . Hover . | . . . . Flight . | . . . . Fastest Speed 50 | 50 160 240 160 Average Speed 220 | 149 204 240 238 Slowest Speed 240 | 160 240 240 240 Overloaded Moves . | . . . . Propulsion Burnouts . | . . . . Robots Hopped . | . . . . Cave-ins Triggered . | . . . . Exploration Rate (%) 51 | 3 86 48 69 Regions Visited 3 Branch Regions 2 Pre-discovered Areas 1 | . . . 1 Known Exits Taken 1 | . 1 . . Unknown Exits Taken 2 | 1 . 1 . Scrap Searched . | . . . . Spaces Dug . | . . . . Terrain Destroyed 79 | . 19 31 29 Melee . | . . . . Projectile . | . . . . AOE 79 | . 19 31 29 Terrain Rammed . | . . . . Walls Destroyed . | . . . . Machines Disabled . | . . . . Actions | -11 -10 -10 -10 --------- Run | Scr Mat Min Exi Total 1545 | 48 709 148 640 Wait 22 | . 19 . 3 Move 1333 | 40 594 143 556 Hop . | . . . . Pick Up 28 | 2 20 . 6 Fast Attach 13 | 6 3 . 4 Attach 7 | . 1 . 6 Detach 4 | . 2 . 2 Swap 12 | . 6 1 5 Drop 27 | . 10 . 17 Fire 97 | . 53 4 40 Melee . | . . . . Ram . | . . . . Kick . | . . . . Crush 2 | . 1 . 1 Escape Stasis . | . . . . Rewire . | . . . . Trap . | . . . . Miscellaneous . | . . . . Route ------- -11/Scrapyard -10/Materials (discovered 5 exits: [*Mat x3] / *Min x2) -10/Mines (discovered 2 exits: [*Mat] / *Exi) -10/Exiles (discovered 1 exit: [*Min]) History --------- Turn | Location | Event 16 | -11/Scrapyard | Discovered new exit (range 16) 72 | -11/Scrapyard | Entered Materials 143 | -10/Materials | Discovered new exit (range 14) 271 | -10/Materials | Discovered new exit (range 15) 307 | -10/Materials | Build established: Mutant 441 | -10/Materials | Discovered new exit (range 16) 921 | -10/Materials | Discovered new exit (range 15) 1450 | -10/Materials | Identified exit to Mines 1498 | -10/Materials | Entered Mines 1544 | -10/Mines | Received a Rocket Launcher from a helpful Derelict 1575 | -10/Mines | Met a Derelict bent on vengeance 1755 | -10/Mines | Discovered new exit (range 12) 1842 | -10/Mines | Deemed a non-threat by the Exiles lab entrance 1842 | -10/Mines | Discovered new exit (range 5) 1851 | -10/Mines | Entered Exiles 1909 | -10/Exiles | Met 8R-AWN 1945 | -10/Exiles | Met EX-HEX 2058 | -10/Exiles | Met EX-DEC 2101 | -10/Exiles | Learned location of Zion (-6) 2255 | -10/Exiles | Met EX-BIN 2288 | -10/Exiles | Aligned with FarCom system 2291 | -10/Exiles | Given EX-Vault access code 2353 | -10/Exiles | Opened EX-Vault 2406 | -10/Exiles | Warned to stay clear of 0b10 Research branches 2881 | -10/Exiles | Discovered new exit (range 10) 3135 | -10/Exiles | Attacked by the Exiles 3183 | -10/Exiles | Core integrity fell below 50% 3302 | -10/Exiles | Core integrity fell below 20% 3313 | -10/Exiles | Destroyed by 8R-AWN with 8R-AWN's Boregun Last Messages --------------- 03272_ HV Slug penetrates Earth. 03276_ Penetrated by HV Slug. 03276_ HV Slug penetrates Earth. 03276_ Penetrated by HV Slug. 03276_ Med. Armor Plating destroyed. 03276_ HV Slug penetrates Earth. 03280_ Penetrated by HV Slug. 03280_ HV Slug penetrates Wall. 03284_ The unstable cave ceiling collapses. 03284_ Mni. Grenade Launcher crushed. 03285_ HV Slug penetrates Machine. 03285_ Penetrated by HV Slug. 03287_ Destroyed Prototype Protection. 03288_ Penetrated by HV Slug. 03292_ Critical hit (Destroy). 03292_ Lgt. Treads destroyed. 03292_ Penetrated by HV Slug. 03301_ HV Slug penetrates Machine. 03301_ HV Slug penetrates Wall. 03301_ Penetrated by HV Slug. Map ----- +----------------------------------------------------+ | ?????????????????????????????????????????????????? | | ?????????????????????????????????????????????????? | | ?????????##??????????????????????????????????????? | | ????????## ?????????????????????????????????????? | | ????????# ?????????????????????????????????????? | | ????????# < ????????????????????????????????????? | | ????????# ????????????????????????????????????? | | ????????# ???????????????????????????????????? | | ????????# ???????????????????????????????????? | | ?????????# ??????????????????????????????????? | | ?????????# ??????????????????????????????????? | | ??????????# ?????????????#######?????????????? | | ??????????# #######??????#!!! "#?????????????? | | ??????????# #""##?????# "#?????????????? | | ??????????## ] #?????# "#?????????????? | | ???????????##" ]] ! ##???## ""#?????????????? | | ???????????#"" #####" ""#?????????????? | | ???????????#### ##" ""#?????????????? | | ??????????????## # " #???????????????? | | ???????????????#"## #???##??????????? | | ???????????????####### ## ###???????" | | ?????????????????????### ##????? | | ???????????????########" # # #??????" | | ????????????#### !!""" " # #??????# | | ????????????# ;! [ g # ## #???### | | ???????????????#! [!@ # ## #####X# | | ???????????????#! ! ##### | | ???????????????# !" " " #;#???#"# | | ???????????????#######;## ???#### | | ????????????????????# #?# #??????# % | | ???????????????????# #??# #???????# # | | ??????????????????# #???# #????????#### % | | ?????????????????# #????# #???????????## | | ????????????????# #?????# #????????????##" | | ???????????????? #??????# #?????????????#"" | | ??????????????? ????????? ?????????????##" | | ?????????????? ?????????? ?????????????#"" | | ????????????????????????? ?????????????#""" | | ????????????????????????? ????????????#""" | | ????????????????????????? ????????????#""" | | ????????????????????????? ????????????#"" | | ????????????????????????? ????????????#""" | | ??????????????????????????????????????#"" | | ??????????????????????????????????????##"" | | ???????????????????????????????????????#"""" | | ???????????????????????????????????????## | | ????????????????????????????????????????#" | | ????????????????????????????????????????#"""" | | ????????????????????????????????????????#"" | | ?????????????????????????????????????????" | +----------------------------------------------------+ Best States ------------- Heat Dissipation 39 Energy Generation 10 Energy Capacity 250 Matter Stores 300 Matter Capacity 300 Sight Range 16 Terrain Scan Density 10 Armor Coverage 450 Evasion (%) 40 Recoil Reduction 2 Item Schematics ----------------- None Robot Schematics ------------------ None Fabricated ------------ Nothing Alien Tech Used ----------------- None Achievements -------------- None Challenges ------------ None Game ------ Seed ImpactHoverSource Manual? 0 Play Time 00:14:56 Cumulative 239.0 hours Start 2021.10.23 @ 12:19:54 End 2021.10.23 @ 12:32:38 Sessions 1 Manual Loads 0 Difficulty Rogue Special Mode None Game No. 318 Rogue 231 Adventurer 87 Explorer 0 Win Type - Total 5 Types 3/0/1/1/0/0/0/0/0 Lore% 71 Gallery% 79 Achievement% 67 Wizard Run 0 Options --------- ASCII 0 Keyboard 1 Movement Numpad Keybinds 0 Fullscreen 1 Font 18/Smallcaps Map View 76x50 Tactical HUD 1 Map Filters NONE Filters NONE Steam 1 RUN: 737a1a1a-1378-48df-b00e-31ea732bfb4d